[Event "TUR-ch Youth U14 2019"]
[Site "Belek"]
[Date "2019.01.20"]
[Round "1"]
[White "Danaci, Ege"]
[Black "Akcaoglu, Mertcan"]
[Result "1-0"]
[ECO "C55"]
[WhiteElo "2143"]
[BlackElo "1158"]
[Annotator "ChessBase"]
[PlyCount "127"]
[EventDate "2019.01.20"]
[EventType "swiss"]
[EventCountry "TUR"]
[SourceTitle "playchess.com"]
[Source "ChessBase"]
[SourceQuality "1"]
[TimeControl "5400+30"]

1. e4 {[%emt 0:00:30]} e5 {[%emt 0:00:30]} 2. Nf3 {[%emt 0:01:30]} Nc6 {[%emt 0:00:30]} 3. Bc4 {[%emt 0:00:30]} Be7 {[%emt 0:00:30]} 4. O-O {[%emt 0:00:30]} Nf6 {[%emt 0:00:30]} 5. d3 {[%emt 0:00:30]} h6 {[%emt 0:00:30]} 6. a4 {[%emt 0:00:30]} d6 {[%emt 0:00:30]} 7. Re1 {[%emt 0:02:30]} a6 {[%emt 0:03:30]} 8. Nbd2 {[%emt 0:01:30]} O-O {[%emt 0:01:30]} 9. c3 {[%emt 0:02:30]} Be6 {[%emt 0:08:30]} 10. Ba2 {[%emt 0:03:30]} Qd7 {[%emt 0:03:30]} 11. d4 {[%emt 0:00:30]} Bxa2 {[%emt 0:00:30]} 12. Rxa2 {[%emt 0:00:00]} Qg4 {[%emt 0:02:30]} 13. d5 {[%emt 0:02:00]} Nd8 {[%emt 0:01:30]} 14. h3 {[%emt 0:00:30]} Qh5 {[%emt 0:02:30]} 15. Nf1 {[%emt 0:00:00]} Qg6 {[%emt 0:01:30]} 16. Ng3 {[%emt 0:01:00]} Qh7 {[%emt 0:00:00]} 17. Qd3 {[%emt 0:04:30]} Nd7 {[%emt 0:05:00]} 18. Nf5 {[%emt 0:04:30]} Bf6 {[%emt 0:00:30]} 19. Qc4 {[%emt 0:01:30]} Rc8 {[%emt 0:00:30]} 20. Nxd6 {[%emt 0:02:30]} Nb6 {[%emt 0:01:30]} 21. Qb3 {[%emt 0:00:00]} Rb8 {[%emt 0:04:30]} 22. Nf5 {[%emt 0:01:00]} Nc8 {[%emt 0:00:30]} 23. Qc4 {[%emt 0:00:30]} c6 {[%emt 0:01:30]} 24. d6 {[%emt 0:02:30]} Nb6 {[%emt 0:02:30]} 25. Qe2 {[%emt 0:00:30]} Ne6 {[%emt 0:02:30]} 26. b3 {[%emt 0:03:30]} Nd7 {[%emt 0:02:30]} 27. Be3 {[%emt 0:04:30]} Kh8 {[%emt 0:01:30]} 28. a5 {[%emt 0:01:30]} Rg8 {[%emt 0:05:30]} 29. Nd2 {[%emt 0:00:30]} Qg6 {[%emt 0:00:30]} 30. Nc4 {[%emt 0:01:30]} Ng5 {[%emt 0:06:30]} 31. Bxg5 {[%emt 0:07:30]} Qxg5 {[%emt 0:01:30]} 32. h4 {[%emt 0:00:30]} Qg6 {[%emt 0:01:30]} 33. Rd1 {[%emt 0:02:30]} Rge8 {[%emt 0:02:30]} 34. Rad2 {[%emt 0:00:30]} Rbd8 {[%emt 0:03:30]} 35. Ne7 {[%emt 0:02:30]} Bxe7 {[%emt 0:08:30]} 36. dxe7 {[%emt 0:01:30]} Rxe7 {[%emt 0:00:30]} 37. h5 {[%emt 0:00:30]} Qg5 {[%emt 0:03:30]} 38. Nb6 {[%emt 0:00:30]} g6 {[%emt 0:01:30]} 39. Rxd7 {[%emt 0:01:30]} Rexd7 {[%emt 0:00:30]} 40. Rxd7 {[%emt 0:00:00]} Rg8 {[%emt 0:02:30]} 41. Rxf7 {[%emt 0:00:00]} gxh5 {[%emt 0:00:00]} 42. Qf3 {[%emt 0:00:30]} h4 {[%emt 0:01:12]} 43. Qf6+ {[%emt 0:00:30]} Qxf6 {[%emt 0:00:30]} 44. Rxf6 {[%emt 0:00:00]} Kh7 {[%emt 0:00:18]} 45. Rf7+ {[%emt 0:00:00]} Kg6 {[%emt 0:00:30]} 46. Rxb7 {[%emt 0:00:00]} Kg5 {[%emt 0:00:00]} 47. Rc7 {[%emt 0:00:00]} Kf4 {[%emt 0:01:00]} 48. Rxc6 {[%emt 0:00:00]} h3 {[%emt 0:00:30]} 49. g3+ {[%emt 0:00:00]} Kg4 {[%emt 0:00:30]} 50. Rxh6 {[%emt 0:00:30]} Rd8 {[%emt 0:00:00]} 51. Nd5 {[%emt 0:00:30]} Kf3 {[%emt 0:00:00]} 52. Rxh3 {[%emt 0:00:30]} Kxe4 {[%emt 0:00:30]} 53. c4 {[%emt 0:00:00]} Rb8 {[%emt 0:00:00]} 54. g4 {[%emt 0:00:00]} Rg8 {[%emt 0:00:00]} 55. Nf6+ {[%emt 0:00:00]} Kf4 {[%emt 0:00:30]} 56. Nxg8 {[%emt 0:00:00]} Kxg4 {[%emt 0:00:00]} 57. Rd3 {[%emt 0:00:30]} Kf4 {[%emt 0:00:00]} 58. c5 {[%emt 0:00:00]} e4 {[%emt 0:00:30]} 59. Rd4 {[%emt 0:00:00]} Ke5 {[%emt 0:00:00]} 60. Rd1 {[%emt 0:00:00]} Ke6 {[%emt 0:00:00]} 61. c6 {[%emt 0:00:00]} Kf7 {[%emt 0:00:30]} 62. c7 {[%emt 0:00:30]} Kxg8 {[%emt 0:00:30]} 63. Rd7 {[%emt 0:00:00]} Kf8 {[%emt 0:00:00]} 64. c8=R# {[%emt 0:00:00]} 1-0

[Event "TUR-ch Youth U14 2019"]
[Site "Belek"]
[Date "2019.01.20"]
[Round "1"]
[White "Caberoglu, Arda"]
[Black "Aydemir, Yusuf"]
[Result "1-0"]
[ECO "C45"]
[WhiteElo "1962"]
[BlackElo "1107"]
[Annotator "NA"]
[PlyCount "109"]
[EventDate "2019.01.20"]
[EventType "swiss"]
[EventCountry "TUR"]
[SourceTitle "playchess.com"]
[Source "ChessBase"]
[SourceQuality "1"]
[TimeControl "5400+30"]

1. e4 {[%emt 0:00:30]} e5 {[%emt 0:00:30]} 2. Nf3 {[%emt 0:00:30]} Nc6 {[%emt 0:00:30]} 3. Nc3 {[%emt 0:00:30]} Nf6 {[%emt 0:00:30]} 4. d4 {[%emt 0:00:00]} exd4 {[%emt 0:00:00]} 5. Nxd4 {[%emt 0:00:00]} Nxd4 {[%emt 0:00:00]} 6. Qxd4 {[%emt 0:00:00]} d6 {[%emt 0:00:30]} 7. f3 {[%emt 0:00:00]} Be6 {[%emt 0:00:30]} 8. Be3 {[%emt 0:03:30]} Be7 {[%emt 0:04:30]} 9. Be2 {[%emt 0:04:30]} O-O {[%emt 0:07:30]} 10. O-O-O {[%emt 0:05:30]} c5 {[%emt 0:02:30]} 11. Qd2 {[%emt 0:00:30]} a6 {[%emt 0:01:30]} 12. Bf4 {[%emt 0:13:30]} Ne8 {[%emt 0:09:30]} 13. g4 {[%emt 0:04:30]} b5 {[%emt 0:00:30]} 14. g5 {[%emt 0:09:30]} b4 {[%emt 0:01:30]} 15. Nd5 {[%emt 0:00:30]} Bxd5 {[%emt 0:06:30]} 16. Qxd5 {[%emt 0:19:30]} Nc7 {[%emt 0:00:30]} 17. Qd2 {[%emt 0:03:30]} Ne6 {[%emt 0:01:30]} 18. h4 {[%emt 0:00:30]} Nd4 {[%emt 0:00:30]} 19. Be3 {[%emt 0:01:30]} Qa5 {[%emt 0:00:30]} 20. Bxd4 {[%emt 0:11:30]} Qxa2 {[%emt 0:00:30]} 21. b3 {[%emt 0:00:00]} cxd4 {[%emt 0:00:30]} 22. Qxd4 {[%emt 0:00:00]} Rfc8 {[%emt 0:00:30]} 23. Qb2 {[%emt 0:01:30]} Qa5 {[%emt 0:01:30]} 24. Bc4 {[%emt 0:04:15]} Qb6 {[%emt 0:01:30]} 25. Qd4 {[%emt 0:00:46]} Qc7 {[%emt 0:03:30]} 26. Rd2 {[%emt 0:04:37]} a5 {[%emt 0:00:30]} 27. Bb5 {[%emt 0:03:33]} Rab8 {[%emt 0:04:30]} 28. Ba4 {[%emt 0:00:40]} Rb6 {[%emt 0:01:30]} 29. f4 {[%emt 0:04:31]} Qc3 {[%emt 0:01:30]} 30. Qxc3 {[%emt 0:01:26]} Rxc3 {[%emt 0:01:30]} 31. Rd3 {[%emt 0:00:00]} Rxd3 {[%emt 0:00:00]} 32. cxd3 {[%emt 0:00:00]} Rb7 {[%emt 0:00:00]} 33. Kd2 {[%emt 0:00:22]} f6 {[%emt 0:00:30]} 34. Rc1 {[%emt 0:00:30]} fxg5 {[%emt 0:00:30]} 35. Bc6 {[%emt 0:04:37]} Rb8 {[%emt 0:01:30]} 36. Bd5+ {[%emt 0:00:00]} Kf8 {[%emt 0:00:00]} 37. fxg5 {[%emt 0:00:14]} h6 {[%emt 0:00:00]} 38. Rf1+ {[%emt 0:01:22]} Ke8 {[%emt 0:00:30]} 39. g6 {[%emt 0:00:35]} Bxh4 {[%emt 0:00:30]} 40. Rf7 {[%emt 0:00:30]} Bf6 {[%emt 0:00:30]} 41. Rxf6 {[%emt 0:00:27]} gxf6 {[%emt 0:01:30]} 42. g7 {[%emt 0:00:30]} Ke7 {[%emt 0:00:00]} 43. g8=Q {[%emt 0:00:01]} Rxg8 {[%emt 0:00:00]} 44. Bxg8 {[%emt 0:00:30]} Kf8 {[%emt 0:00:30]} 45. Bd5 {[%emt 0:00:30]} Kg7 {[%emt 0:00:30]} 46. Ke3 {[%emt 0:00:30]} Kg6 {[%emt 0:00:30]} 47. Kf4 {[%emt 0:00:30]} h5 {[%emt 0:00:30]} 48. Bc6 {[%emt 0:00:00]} Kf7 {[%emt 0:00:00]} 49. Kf5 {[%emt 0:00:00]} Ke7 {[%emt 0:01:00]} 50. Bd5 {[%emt 0:00:00]} h4 {[%emt 0:00:30]} 51. Kg4 {[%emt 0:00:00]} Kd7 {[%emt 0:00:00]} 52. Kxh4 {[%emt 0:00:00]} Ke7 {[%emt 0:00:00]} 53. Kg4 {[%emt 0:00:16]} Kf8 {[%emt 0:00:00]} 54. Kf5 {[%emt 0:00:30]} Ke7 {[%emt 0:00:00]} 55. Bc4 {[%emt 0:00:00]} 1-0

[Event "TUR-ch Youth U14 2019"]
[Site "Belek"]
[Date "2019.01.20"]
[Round "1"]
[White "Kara, Gulce Nehir"]
[Black "Onel, Nazire Yagmur"]
[Result "1-0"]
[ECO "B51"]
[WhiteElo "1702"]
[BlackElo "1209"]
[Annotator "NA"]
[PlyCount "145"]
[EventDate "2019.01.20"]
[EventType "swiss"]
[EventCountry "TUR"]
[SourceTitle "playchess.com"]
[Source "ChessBase"]
[SourceQuality "1"]
[TimeControl "5400+30"]

1. e4 {[%emt 0:00:00]} c5 {[%emt 1:30:30]} 2. Nf3 {[%emt 0:00:00]} Nc6 {[%emt 0:00:00]} 3. Bb5 {[%emt 0:00:30]} g6 {[%emt 0:00:00]} 4. O-O {[%emt 0:00:30]} d6 {[%emt 0:00:00]} 5. c3 {[%emt 0:00:30]} Bd7 {[%emt 0:00:00]} 6. d4 {[%emt 0:21:30]} a6 {[%emt 0:00:00]} 7. Ba4 {[%emt 0:04:30]} Bg7 {[%emt 0:00:00]} 8. Re1 {[%emt 0:12:30]} b5 {[%emt 0:00:00]} 9. Bb3 {[%emt 0:19:30]} cxd4 {[%emt 0:00:00]} 10. cxd4 {[%emt 0:01:30]} Rc8 {[%emt 0:00:00]} 11. h3 {[%emt 0:10:30]} Na5 {[%emt 0:00:00]} 12. Bc2 {[%emt 0:00:30]} Bc6 {[%emt 0:00:00]} 13. Qe2 {[%emt 0:05:19]} Nf6 {[%emt 0:06:00]} 14. Bf4 {[%emt 0:03:21]} O-O {[%emt 0:00:00]} 15. Nbd2 {[%emt 0:02:19]} Bb7 {[%emt 0:00:00]} 16. Bd3 {[%emt 0:00:23]} Nd7 {[%emt 0:00:00]} 17. a4 {[%emt 0:01:46]} Nc6 {[%emt 0:00:00]} 18. axb5 {[%emt 0:09:10]} axb5 {[%emt 0:00:00]} 19. Bxb5 {[%emt 0:00:51]} Nxd4 {[%emt 0:00:00]} 20. Nxd4 {[%emt 0:00:30]} Bxd4 {[%emt 0:00:00]} 21. Nf3 {[%emt 0:00:00]} Bg7 {[%emt 0:00:00]} 22. Rab1 {[%emt 0:02:56]} Nc5 {[%emt 0:00:00]} 23. Nd2 {[%emt 0:01:03]} Bc6 {[%emt 0:00:00]} 24. Bxc6 {[%emt 0:01:43]} Rxc6 {[%emt 0:00:00]} 25. Rec1 {[%emt 0:00:21]} Qd7 {[%emt 0:00:00]} 26. Be3 {[%emt 0:00:40]} Rfc8 {[%emt 0:00:00]} 27. f3 {[%emt 0:00:27]} Qb7 {[%emt 0:00:00]} 28. Nc4 {[%emt 0:00:29]} Qa6 {[%emt 0:00:24]} 29. b4 {[%emt 0:00:40]} Nb3 {[%emt 0:02:45]} 30. Rxb3 {[%emt 0:00:17]} Rxc4 {[%emt 0:00:19]} 31. Kh2 {[%emt 0:00:33]} Qb5 {[%emt 0:02:02]} 32. f4 {[%emt 0:00:24]} d5 {[%emt 0:00:27]} 33. exd5 {[%emt 0:00:41]} Qxd5 {[%emt 0:00:10]} 34. Rd3 {[%emt 0:00:33]} Qe6 {[%emt 0:00:31]} 35. Rxc4 {[%emt 0:00:25]} Rxc4 {[%emt 0:00:19]} 36. Qa2 {[%emt 0:00:35]} Rc8 {[%emt 0:00:34]} 37. Qb1 {[%emt 0:00:22]} h5 {[%emt 0:01:03]} 38. b5 {[%emt 0:00:10]} Rb8 {[%emt 0:00:25]} 39. b6 {[%emt 0:00:42]} Rb7 {[%emt 0:00:09]} 40. Qb5 {[%emt 0:00:38]} Qc8 {[%emt 0:01:26]} 41. Ra3 {[%emt 0:00:33]} e6 {[%emt 0:01:14]} 42. Ra7 {[%emt 0:00:26]} Bf8 {[%emt 0:01:19]} 43. Qa6 {[%emt 0:01:05]} Rb8 {[%emt 0:00:13]} 44. Qxc8 {[%emt 0:00:23]} Rxc8 {[%emt 0:00:05]} 45. Rc7 {[%emt 0:00:00]} Rb8 {[%emt 0:00:23]} 46. b7 {[%emt 0:00:00]} Bd6 {[%emt 0:01:26]} 47. Rd7 {[%emt 0:00:01]} Bb4 {[%emt 0:00:51]} 48. Ba7 {[%emt 0:00:05]} Rxb7 {[%emt 0:00:43]} 49. Rxb7 {[%emt 0:00:30]} Bd6 {[%emt 0:00:00]} 50. g3 {[%emt 0:00:09]} Kg7 {[%emt 0:00:00]} 51. Bd4+ {[%emt 0:00:00]} Kh6 {[%emt 0:00:32]} 52. Rxf7 {[%emt 0:00:00]} e5 {[%emt 0:00:08]} 53. fxe5 {[%emt 0:00:03]} Bxe5 {[%emt 0:00:07]} 54. Bxe5 {[%emt 0:00:30]} g5 {[%emt 0:00:00]} 55. h4 {[%emt 0:00:00]} g4 {[%emt 0:00:00]} 56. Kg2 {[%emt 0:00:33]} Kg6 {[%emt 0:00:22]} 57. Rf6+ {[%emt 0:00:00]} Kg7 {[%emt 0:00:12]} 58. Kf2 {[%emt 0:00:07]} Kh7 {[%emt 0:00:30]} 59. Ke3 {[%emt 0:00:30]} Kg7 {[%emt 0:00:00]} 60. Kf4 {[%emt 0:00:00]} Kh7 {[%emt 0:00:00]} 61. Kg5 {[%emt 0:00:05]} Kg7 {[%emt 0:00:00]} 62. Rf5+ {[%emt 0:00:00]} Kh7 {[%emt 0:00:00]} 63. Rf7+ {[%emt 0:00:00]} Kg8 {[%emt 0:00:00]} 64. Ra7 {[%emt 0:00:03]} Kf8 {[%emt 0:00:08]} 65. Kg6 {[%emt 0:00:30]} Ke8 {[%emt 0:00:00]} 66. Kf6 {[%emt 0:00:07]} Kd8 {[%emt 0:00:11]} 67. Ke6 {[%emt 0:00:30]} Kc8 {[%emt 0:00:00]} 68. Rh7 {[%emt 0:00:00]} Kd8 {[%emt 0:00:12]} 69. Bf6+ {[%emt 0:00:00]} Kc8 {[%emt 0:00:00]} 70. Kd6 {[%emt 0:00:04]} Kb8 {[%emt 0:00:08]} 71. Kc6 {[%emt 0:00:30]} Ka8 {[%emt 0:00:00]} 72. Kb6 {[%emt 0:00:00]} Kb8 {[%emt 0:00:13]} 73. Rh8# {[%emt 0:00:00]} 1-0

[Event "TUR-ch Youth U14 2019"]
[Site "Belek"]
[Date "2019.01.20"]
[Round "1"]
[White "Tikvesli, Ceylin"]
[Black "Eken, Eylul"]
[Result "1-0"]
[ECO "C44"]
[WhiteElo "1677"]
[BlackElo "1069"]
[Annotator "NA"]
[PlyCount "107"]
[EventDate "2019.01.20"]
[EventType "swiss"]
[EventCountry "TUR"]
[SourceTitle "playchess.com"]
[Source "ChessBase"]
[SourceQuality "1"]
[TimeControl "5400+30"]

1. e4 {[%emt 1:30:30]} e5 {[%emt 1:30:30]} 2. Nf3 {[%emt 0:00:30]} Nc6 {[%emt 0:00:30]} 3. d4 {[%emt 0:00:30]} f6 {[%emt 0:00:30]} 4. Bc4 {[%emt 0:00:00]} d6 {[%emt 0:00:00]} 5. Nc3 {[%emt 0:00:00]} Nge7 {[%emt 0:00:00]} 6. h3 {[%emt 0:00:00]} g6 {[%emt 0:00:00]} 7. O-O {[%emt 0:00:00]} Bg7 {[%emt 0:00:00]} 8. a3 {[%emt 0:00:00]} f5 {[%emt 0:00:00]} 9. Ng5 {[%emt 0:00:00]} h6 {[%emt 0:00:00]} 10. Nf7 {[%emt 0:00:00]} Qd7 {[%emt 0:00:00]} 11. Nxh8 {[%emt 0:00:00]} Bxh8 {[%emt 0:00:00]} 12. d5 {[%emt 0:00:00]} Nd8 {[%emt 0:00:00]} 13. Bxh6 {[%emt 0:00:00]} f4 {[%emt 0:00:00]} 14. Bg5 {[%emt 0:00:00]} a6 {[%emt 0:00:00]} 15. Be2 {[%emt 0:00:00]} Nf7 {[%emt 0:00:00]} 16. Bg4 {[%emt 0:00:00]} Qd8 {[%emt 0:00:00]} 17. Bxe7 {[%emt 0:00:00]} Qxe7 {[%emt 0:00:00]} 18. Bxc8 {[%emt 0:00:00]} Rxc8 {[%emt 0:00:00]} 19. Qg4 {[%emt 0:00:00]} Rd8 {[%emt 0:00:00]} 20. Qxg6 {[%emt 0:00:00]} Bf6 {[%emt 0:00:00]} 21. g3 {[%emt 0:00:00]} Bg5 {[%emt 0:00:00]} 22. Qe6 {[%emt 0:00:00]} Kf8 {[%emt 0:00:00]} 23. Qxe7+ {[%emt 0:00:00]} Kxe7 {[%emt 0:00:00]} 24. h4 {[%emt 0:00:00]} Bh6 {[%emt 0:00:00]} 25. g4 {[%emt 0:00:00]} f3 {[%emt 0:00:00]} 26. g5 {[%emt 0:00:00]} Rg8 {[%emt 0:00:00]} 27. Kh2 {[%emt 0:00:00]} Bxg5 {[%emt 0:00:00]} 28. hxg5 {[%emt 0:00:00]} Nxg5 {[%emt 0:00:00]} 29. Rh1 {[%emt 0:00:00]} Rh8+ {[%emt 0:02:25]} 30. Kg1 {[%emt 0:00:00]} Nh3+ {[%emt 0:02:20]} 31. Kf1 {[%emt 0:00:00]} Kf6 {[%emt 0:01:07]} 32. Ke1 {[%emt 0:00:00]} Kg7 {[%emt 0:00:38]} 33. Kd2 {[%emt 0:00:00]} Kf6 {[%emt 0:01:58]} 34. Ke3 {[%emt 0:00:00]} Kg7 {[%emt 0:01:06]} 35. Rh2 {[%emt 0:00:00]} Ng5 {[%emt 0:02:58]} 36. Rxh8 {[%emt 0:00:00]} Kxh8 {[%emt 0:00:09]} 37. Rg1 {[%emt 0:00:00]} Nf7 {[%emt 0:00:05]} 38. Kxf3 {[%emt 0:00:00]} Kh7 {[%emt 0:00:49]} 39. Kg4 {[%emt 0:00:00]} Kg6 {[%emt 0:00:38]} 40. Ne2 {[%emt 0:00:00]} Kf6 {[%emt 0:00:54]} 41. Rh1 {[%emt 0:00:00]} Kg6 {[%emt 0:00:50]} 42. f4 {[%emt 0:00:00]} Nh6+ {[%emt 0:01:08]} 43. Rxh6+ {[%emt 0:00:00]} Kxh6 {[%emt 0:00:02]} 44. f5 {[%emt 0:00:00]} c5 {[%emt 0:01:26]} 45. Ng3 {[%emt 0:00:00]} b5 {[%emt 0:00:25]} 46. b3 {[%emt 0:00:00]} a5 {[%emt 0:00:47]} 47. a4 {[%emt 0:00:00]} bxa4 {[%emt 0:00:44]} 48. bxa4 {[%emt 0:00:00]} Kh7 {[%emt 0:00:22]} 49. Kg5 {[%emt 0:00:00]} Kg7 {[%emt 0:00:43]} 50. Nh5+ {[%emt 0:00:00]} Kf7 {[%emt 0:00:00]} 51. f6 {[%emt 0:00:00]} c4 {[%emt 0:00:44]} 52. c3 {[%emt 0:00:00]} Kg8 {[%emt 0:01:18]} 53. Kg6 {[%emt 0:00:00]} Kh8 {[%emt 0:00:48]} 54. Ng7 {[%emt 0:00:00]} 1-0

[Event "TUR-ch Youth U14 2019"]
[Site "Belek"]
[Date "2019.01.20"]
[Round "1"]
[White "Kir, Mehmet Metehan"]
[Black "Bicer, Atakan Mert"]
[Result "0-1"]
[ECO "B18"]
[WhiteElo "1283"]
[BlackElo "1854"]
[Annotator "NA"]
[PlyCount "84"]
[EventDate "2019.01.20"]
[EventType "swiss"]
[EventCountry "TUR"]
[SourceTitle "playchess.com"]
[Source "ChessBase"]
[SourceQuality "1"]
[TimeControl "5400+30"]

1. e4 {[%emt 0:00:30]} c6 {[%emt 0:00:30]} 2. d4 {[%emt 0:00:30]} d5 {[%emt 0:00:00]} 3. Nc3 {[%emt 0:00:30]} dxe4 {[%emt 0:00:00]} 4. Nxe4 {[%emt 0:00:30]} Bf5 {[%emt 0:00:30]} 5. Nc3 {[%emt 0:00:30]} Nf6 {[%emt 0:00:30]} 6. Nf3 {[%emt 0:00:30]} e6 {[%emt 0:00:30]} 7. Bd3 {[%emt 0:00:30]} Bg6 {[%emt 0:01:30]} 8. Be3 {[%emt 0:12:30]} Bd6 {[%emt 0:03:30]} 9. Ne5 {[%emt 0:09:30]} Nbd7 {[%emt 0:01:30]} 10. Nc4 {[%emt 0:12:30]} Bc7 {[%emt 0:01:30]} 11. Bxg6 {[%emt 0:01:30]} hxg6 {[%emt 0:00:30]} 12. h3 {[%emt 0:03:30]} Nd5 {[%emt 0:10:30]} 13. Qd3 {[%emt 0:06:30]} b5 {[%emt 0:08:30]} 14. Nxd5 {[%emt 0:07:30]} cxd5 {[%emt 0:00:00]} 15. Nd2 {[%emt 0:09:30]} a6 {[%emt 0:03:00]} 16. Nb3 {[%emt 0:04:30]} Qf6 {[%emt 0:11:30]} 17. O-O-O {[%emt 0:01:30]} Nb6 {[%emt 0:03:30]} 18. Nc5 {[%emt 0:02:30]} Nc4 {[%emt 0:01:30]} 19. b3 {[%emt 0:01:30]} Nd6 {[%emt 0:00:30]} 20. Rhe1 {[%emt 0:02:30]} Bb6 {[%emt 0:04:30]} 21. Kb1 {[%emt 0:01:30]} Rh4 {[%emt 0:15:30]} 22. Re2 {[%emt 0:01:15]} Ra7 {[%emt 0:03:30]} 23. Bc1 {[%emt 0:06:09]} Kf8 {[%emt 0:08:30]} 24. Qg3 {[%emt 0:01:24]} Nf5 {[%emt 0:01:57]} 25. Qb8+ {[%emt 0:02:12]} Qd8 {[%emt 0:00:08]} 26. Qxd8+ {[%emt 0:04:19]} Bxd8 {[%emt 0:00:30]} 27. c3 {[%emt 0:00:30]} b4 {[%emt 0:00:30]} 28. Kb2 {[%emt 0:00:30]} bxc3+ {[%emt 0:00:30]} 29. Kxc3 {[%emt 0:00:30]} Bf6 {[%emt 0:00:30]} 30. f4 {[%emt 0:02:13]} g5 {[%emt 0:08:57]} 31. Rf2 {[%emt 0:01:21]} Rc7 {[%emt 0:02:10]} 32. b4 {[%emt 0:00:36]} g4 {[%emt 0:01:04]} 33. hxg4 {[%emt 0:01:09]} Rxg4 {[%emt 0:00:06]} 34. Rd3 {[%emt 0:01:16]} g5 {[%emt 0:04:14]} 35. Be3 {[%emt 0:02:17]} Bg7 {[%emt 0:01:45]} 36. Bc1 {[%emt 0:00:49]} Rc8 {[%emt 0:01:00]} 37. Be3 {[%emt 0:00:28]} Ke7 {[%emt 0:01:09]} 38. Bc1 {[%emt 0:00:44]} a5 {[%emt 0:01:39]} 39. a3 {[%emt 0:00:08]} Rh8 {[%emt 0:00:23]} 40. Nb3 {[%emt 0:00:59]} axb4+ {[%emt 0:00:09]} 41. axb4 {[%emt 0:00:08]} Nd6 {[%emt 0:00:33]} 42. g3 {[%emt 0:01:02]} Ne4+ {[%emt 0:00:06]} 0-1

[Event "TUR-ch Youth U14 2019"]
[Site "Belek"]
[Date "2019.01.20"]
[Round "1"]
[White "Ter, Mustafa Baray"]
[Black "Guler, Muhammed Talha"]
[Result "0-1"]
[ECO "C01"]
[WhiteElo "1281"]
[BlackElo "1816"]
[Annotator "NA"]
[PlyCount "40"]
[EventDate "2019.01.20"]
[EventType "swiss"]
[EventCountry "TUR"]
[SourceTitle "playchess.com"]
[Source "ChessBase"]
[SourceQuality "1"]
[TimeControl "5400+30"]

1. e4 {[%emt 0:00:30]} e6 {[%emt 0:00:30]} 2. d4 {[%emt 0:00:30]} d5 {[%emt 0:00:30]} 3. exd5 {[%emt 0:00:30]} exd5 {[%emt 0:00:30]} 4. c4 {[%emt 0:00:00]} Nf6 {[%emt 0:00:30]} 5. Nc3 {[%emt 0:00:00]} Bb4 {[%emt 0:00:30]} 6. Nf3 {[%emt 0:00:00]} O-O {[%emt 0:00:30]} 7. Be2 {[%emt 0:00:00]} dxc4 {[%emt 0:07:30]} 8. Bxc4 {[%emt 0:00:30]} Bg4 {[%emt 0:01:30]} 9. Qb3 {[%emt 0:00:30]} Nc6 {[%emt 0:02:30]} 10. d5 {[%emt 0:00:30]} Bxf3 {[%emt 0:00:30]} 11. gxf3 {[%emt 0:01:30]} Bxc3+ {[%emt 0:04:30]} 12. bxc3 {[%emt 0:00:30]} Na5 {[%emt 0:00:30]} 13. Qb4 {[%emt 0:08:30]} Nxc4 {[%emt 0:01:30]} 14. Qxc4 {[%emt 0:00:30]} Qxd5 {[%emt 0:00:30]} 15. Qe2 {[%emt 0:01:30]} Rfe8 {[%emt 0:00:30]} 16. Be3 {[%emt 0:00:30]} Qe5 {[%emt 0:00:30]} 17. O-O {[%emt 0:02:30]} Nd5 {[%emt 0:00:30]} 18. Qd2 {[%emt 0:08:30]} Nxe3 {[%emt 0:00:30]} 19. Rfe1 {[%emt 0:00:30]} Qg5+ {[%emt 0:00:30]} 20. Kh1 {[%emt 0:00:30]} Qg2# {[%emt 0:00:00]} 0-1

[Event "TUR-ch Youth U14 2019"]
[Site "Belek"]
[Date "2019.01.20"]
[Round "1"]
[White "Haktanirlar, Zeren"]
[Black "Ince, Safiye Oyku"]
[Result "0-1"]
[ECO "B40"]
[WhiteElo "1240"]
[BlackElo "1870"]
[Annotator "NA"]
[PlyCount "108"]
[EventDate "2019.01.20"]
[EventType "swiss"]
[EventCountry "TUR"]
[SourceTitle "playchess.com"]
[Source "ChessBase"]
[SourceQuality "1"]
[TimeControl "5400+30"]

1. e4 {[%emt 0:00:30]} c5 {[%emt 0:00:30]} 2. Nf3 {[%emt 0:00:30]} e6 {[%emt 0:04:30]} 3. b3 {[%emt 0:04:30]} d5 {[%emt 0:00:30]} 4. exd5 {[%emt 0:00:30]} exd5 {[%emt 0:00:30]} 5. Bb5+ {[%emt 0:02:30]} Nc6 {[%emt 0:04:30]} 6. Qe2+ {[%emt 0:01:30]} Qe7 {[%emt 0:00:30]} 7. Ne5 {[%emt 0:19:30]} Bd7 {[%emt 0:05:30]} 8. Bxc6 {[%emt 0:16:30]} Bxc6 {[%emt 0:00:30]} 9. Nxc6 {[%emt 0:00:30]} bxc6 {[%emt 0:00:30]} 10. Bb2 {[%emt 0:00:30]} Qxe2+ {[%emt 0:00:30]} 11. Kxe2 {[%emt 0:00:30]} Rb8 {[%emt 0:00:30]} 12. Re1 {[%emt 0:00:30]} f6 {[%emt 0:02:30]} 13. Nc3 {[%emt 0:03:30]} Nh6 {[%emt 0:04:30]} 14. f4 {[%emt 0:05:30]} Nf5 {[%emt 0:02:30]} 15. Na4 {[%emt 0:04:30]} Bd6 {[%emt 0:02:30]} 16. Kf3+ {[%emt 0:01:30]} Kf7 {[%emt 0:02:30]} 17. g3 {[%emt 0:01:30]} h5 {[%emt 0:06:30]} 18. h4 {[%emt 0:01:30]} Rhg8 {[%emt 0:03:30]} 19. Rh1 {[%emt 0:08:30]} Rge8 {[%emt 0:05:30]} 20. Rae1 {[%emt 0:03:30]} Rxe1 {[%emt 0:10:30]} 21. Rxe1 {[%emt 0:00:30]} Rg8 {[%emt 0:00:30]} 22. Rh1 {[%emt 0:01:30]} Re8 {[%emt 0:02:30]} 23. Bc3 {[%emt 0:08:22]} Kg6 {[%emt 0:00:30]} 24. Bb2 {[%emt 0:01:57]} Kh6 {[%emt 0:00:30]} 25. Rg1 {[%emt 0:01:21]} Re6 {[%emt 0:03:30]} 26. Rh1 {[%emt 0:03:58]} g5 {[%emt 0:02:30]} 27. hxg5+ {[%emt 0:01:42]} fxg5 {[%emt 0:00:30]} 28. fxg5+ {[%emt 0:02:11]} Kxg5 {[%emt 0:00:00]} 29. Rg1 {[%emt 0:00:27]} Re4 {[%emt 0:00:00]} 30. Bc1 {[%emt 0:01:36]} Nd4+ {[%emt 0:02:30]} 31. Kf2 {[%emt 0:00:27]} Re2+ {[%emt 0:01:30]} 32. Kf1 {[%emt 0:00:13]} Rh2 {[%emt 0:00:30]} 33. d3+ {[%emt 0:02:21]} Kg4 {[%emt 0:00:30]} 34. Be3 {[%emt 0:00:25]} Rxc2 {[%emt 0:01:30]} 35. Bxd4 {[%emt 0:00:57]} cxd4 {[%emt 0:00:00]} 36. Rg2 {[%emt 0:00:11]} Rc1+ {[%emt 0:01:00]} 37. Kf2 {[%emt 0:00:15]} Ra1 {[%emt 0:00:00]} 38. Ke2 {[%emt 0:01:43]} Rxa2+ {[%emt 0:00:00]} 39. Kf1 {[%emt 0:00:00]} Rxg2 {[%emt 0:01:30]} 40. Kxg2 {[%emt 0:00:07]} Bxg3 {[%emt 0:00:00]} 41. Nc5 {[%emt 0:00:29]} h4 {[%emt 0:02:00]} 42. Ne6 {[%emt 0:00:38]} h3+ {[%emt 0:02:30]} 43. Kh1 {[%emt 0:00:25]} Bf2 {[%emt 0:01:30]} 44. Nc5 {[%emt 0:00:52]} Bh4 {[%emt 0:00:30]} 45. Kh2 {[%emt 0:00:32]} Bg3+ {[%emt 0:01:30]} 46. Kh1 {[%emt 0:00:11]} Bd6 {[%emt 0:00:00]} 47. Nb7 {[%emt 0:00:43]} Bc7 {[%emt 0:00:00]} 48. Nc5 {[%emt 0:00:19]} Bb6 {[%emt 0:01:30]} 49. Nd7 {[%emt 0:00:31]} Kg3 {[%emt 0:00:30]} 50. b4 {[%emt 0:01:08]} Kf2 {[%emt 0:00:30]} 51. Kh2 {[%emt 0:00:16]} Ke3 {[%emt 0:00:00]} 52. Kxh3 {[%emt 0:00:41]} Kxd3 {[%emt 0:01:00]} 53. Ne5+ {[%emt 0:00:07]} Kc3 {[%emt 0:00:00]} 54. Kg3 {[%emt 0:01:03]} Bc7 {[%emt 0:00:00]} 0-1